[Event "Titled Tuesday Blitz March 21 Early 2023"]
[White "Coelho, Ramyres Santana"]
[Black "dorpato"]
[WhiteFideId "2120690"]
[WhiteElo "1888"]
[BlackElo "1976"]
[Result "1-0"]
[Round "08"]
[TimeControl "180+2"]
[Date "2023.03.21"]
[WhiteClock "0:02:06"]
[BlackClock "0:00:31"]

1. e4 {[%clk 0:03:00]}  c5 {[%clk 0:02:57]} 2. Nf3 {[%clk 0:02:59]}  g6 {[%clk 0:02:52]} 3. d4 {[%clk 0:02:59]}  cxd4 {[%clk 0:02:48]} 4. c3 {[%clk 0:02:59]}  d5 {[%clk 0:02:47]} 5. e5 {[%clk 0:02:59]}  Bg7 {[%clk 0:02:32]} 6. cxd4 {[%clk 0:02:58]}  Bf5 {[%clk 0:02:24]} 7. Bd3 {[%clk 0:02:57]}  Bxd3 {[%clk 0:02:19]} 8. Qxd3 {[%clk 0:02:58]}  e6 {[%clk 0:02:19]} 9. O-O {[%clk 0:02:58]}  Ne7 {[%clk 0:02:17]} 10. Nc3 {[%clk 0:02:59]}  O-O {[%clk 0:02:15]} 11. h4 {[%clk 0:02:58]}  h5 {[%clk 0:02:14]} 12. Ne2 {[%clk 0:02:52]}  Nbc6 {[%clk 0:02:11]} 13. Bg5 {[%clk 0:02:51]}  Qd7 {[%clk 0:01:19]} 14. Bf6 {[%clk 0:02:47]}  Nf5 {[%clk 0:01:18]} 15. Ng3 {[%clk 0:02:41]}  Nxg3 {[%clk 0:01:14]} 16. fxg3 {[%clk 0:02:42]}  Ne7 {[%clk 0:01:12]} 17. g4 {[%clk 0:02:34]}  hxg4 {[%clk 0:01:06]} 18. Nh2 {[%clk 0:02:34]}  g3 {[%clk 0:01:02]} 19. Ng4 {[%clk 0:02:27]}  Nf5 {[%clk 0:01:02]} 20. Qd2 {[%clk 0:02:14]}  Qa4 {[%clk 0:00:58]} 21. Rxf5 {[%clk 0:02:11]}  exf5 {[%clk 0:00:55]} 22. Bxg7 {[%clk 0:02:11]}  fxg4 {[%clk 0:00:39]} 23. Qh6 {[%clk 0:02:10]}  f5 {[%clk 0:00:31]} 24. e6 {[%clk 0:02:06]} 1-0


[Site "https://www.chess.com"]

[Event "Titled Tuesday Blitz March 21 Early 2023"]
[White "Singgih, Diajeng Theresa"]
[Black "Kuchava, Ana"]
[WhiteFideId "7104391"]
[BlackFideId "13605348"]
[WhiteElo "1891"]
[BlackElo "2001"]
[Result "0-1"]
[Round "08"]
[TimeControl "180+2"]
[Date "2023.03.21"]
[WhiteClock "0:00:04"]
[BlackClock "0:00:04"]

1. e4 {[%clk 0:03:00]}  c5 {[%clk 0:02:59]} 2. Nf3 {[%clk 0:02:35]}  d6 {[%clk 0:02:56]} 3. d4 {[%clk 0:02:28]}  cxd4 {[%clk 0:02:57]} 4. Nxd4 {[%clk 0:02:28]}  Nf6 {[%clk 0:02:56]} 5. Nc3 {[%clk 0:02:27]}  Nc6 {[%clk 0:02:53]} 6. Nb3 {[%clk 0:02:23]}  e5 {[%clk 0:02:41]} 7. Bc4 {[%clk 0:02:17]}  a6 {[%clk 0:02:39]} 8. O-O {[%clk 0:02:03]}  Be7 {[%clk 0:02:28]} 9. Re1 {[%clk 0:01:50]}  O-O {[%clk 0:02:24]} 10. a4 {[%clk 0:01:50]}  Be6 {[%clk 0:02:11]} 11. Nd5 {[%clk 0:01:49]}  Rb8 {[%clk 0:02:04]} 12. a5 {[%clk 0:01:43]}  Nd7 {[%clk 0:01:21]} 13. Be3 {[%clk 0:01:37]}  Nc5 {[%clk 0:01:08]} 14. f3 {[%clk 0:00:55]}  Nxb3 {[%clk 0:00:56]} 15. Bxb3 {[%clk 0:00:50]}  Bxd5 {[%clk 0:00:53]} 16. Qxd5 {[%clk 0:00:48]}  Qc7 {[%clk 0:00:47]} 17. Bb6 {[%clk 0:00:45]}  Qd7 {[%clk 0:00:42]} 18. Rad1 {[%clk 0:00:45]}  Rbc8 {[%clk 0:00:38]} 19. Rf1 {[%clk 0:00:39]}  Nb4 {[%clk 0:00:32]} 20. Qxe5 {[%clk 0:00:34]}  Nxc2 {[%clk 0:00:27]} 21. Qg3 {[%clk 0:00:22]}  Nb4 {[%clk 0:00:09]} 22. e5 {[%clk 0:00:16]}  d5 {[%clk 0:00:05]} 23. f4 {[%clk 0:00:08]}  Bc5+ {[%clk 0:00:04]} 24. Bxc5 {[%clk 0:00:08]}  Rxc5 {[%clk 0:00:05]} 25. f5 {[%clk 0:00:08]}  Qb5 {[%clk 0:00:04]} 26. f6 {[%clk 0:00:07]}  g6 {[%clk 0:00:04]} 27. Qh4 {[%clk 0:00:04]}  h5 {[%clk 0:00:04]} 0-1


[Site "https://www.chess.com"]

[Event "Titled Tuesday Blitz March 21 Early 2023"]
[White "Sanchez, Robert"]
[Black "Semenova, Alina"]
[WhiteFideId "2034360"]
[BlackFideId "24113875"]
[WhiteElo "2171"]
[BlackElo "1833"]
[Result "1-0"]
[Round "08"]
[TimeControl "180+2"]
[Date "2023.03.21"]
[WhiteClock "0:02:10"]
[BlackClock "0:00:01"]

1. e4 {[%clk 0:03:00]}  e5 {[%clk 0:02:59]} 2. d4 {[%clk 0:02:59]}  exd4 {[%clk 0:02:58]} 3. c3 {[%clk 0:03:00]}  dxc3 {[%clk 0:02:51]} 4. Bc4 {[%clk 0:03:00]}  c2 {[%clk 0:02:42]} 5. Qxc2 {[%clk 0:02:59]}  Nc6 {[%clk 0:02:36]} 6. Nf3 {[%clk 0:02:59]}  Bb4+ {[%clk 0:02:17]} 7. Nc3 {[%clk 0:02:58]}  d6 {[%clk 0:02:02]} 8. O-O {[%clk 0:02:56]}  Be6 {[%clk 0:02:01]} 9. Bxe6 {[%clk 0:02:55]}  fxe6 {[%clk 0:02:02]} 10. Qb3 {[%clk 0:02:54]}  Bxc3 {[%clk 0:01:35]} 11. Qxc3 {[%clk 0:02:42]}  Qf6 {[%clk 0:01:32]} 12. Qb3 {[%clk 0:02:42]}  Rb8 {[%clk 0:01:29]} 13. Bg5 {[%clk 0:02:40]}  Qf7 {[%clk 0:01:29]} 14. Rac1 {[%clk 0:02:38]}  Ne5 {[%clk 0:01:06]} 15. Nxe5 {[%clk 0:02:37]}  dxe5 {[%clk 0:01:07]} 16. f4 {[%clk 0:02:36]}  exf4 {[%clk 0:01:01]} 17. Rxf4 {[%clk 0:02:36]}  Qd7 {[%clk 0:00:57]} 18. Rcf1 {[%clk 0:02:27]}  Nf6 {[%clk 0:00:32]} 19. Bxf6 {[%clk 0:02:26]}  gxf6 {[%clk 0:00:33]} 20. Rxf6 {[%clk 0:02:26]}  Qd4+ {[%clk 0:00:33]} 21. Kh1 {[%clk 0:02:26]}  c5 {[%clk 0:00:02]} 22. Qxe6+ {[%clk 0:02:23]}  Kd8 {[%clk 0:00:02]} 23. Rf8+ {[%clk 0:02:10]}  Rxf8 {[%clk 0:00:01]} 24. Rxf8+ {[%clk 0:02:10]}  Kc7 {[%clk 0:00:02]} 25. Rf7+ {[%clk 0:02:11]}  Kd8 {[%clk 0:00:01]} 26. Qe7+ {[%clk 0:02:10]} 1-0


[Site "https://www.chess.com"]

[Event "Titled Tuesday Blitz March 21 Early 2023"]
[White "Prado, Alexandra"]
[Black "Bongo Akanga Ndjila, Barthelemy"]
[WhiteFideId "3301346"]
[BlackFideId "10609431"]
[WhiteElo "1759"]
[BlackElo "1768"]
[Result "0-1"]
[Round "08"]
[TimeControl "180+2"]
[Date "2023.03.21"]
[WhiteClock "0:00:24"]
[BlackClock "0:02:01"]

1. e4 {[%clk 0:02:58]}  e6 {[%clk 0:02:59]} 2. Nf3 {[%clk 0:02:53]}  d5 {[%clk 0:02:59]} 3. e5 {[%clk 0:02:53]}  c5 {[%clk 0:02:58]} 4. b4 {[%clk 0:02:53]}  cxb4 {[%clk 0:02:55]} 5. d4 {[%clk 0:02:52]}  Nc6 {[%clk 0:02:55]} 6. a3 {[%clk 0:02:48]}  bxa3 {[%clk 0:02:55]} 7. Bxa3 {[%clk 0:02:44]}  Bxa3 {[%clk 0:02:52]} 8. Rxa3 {[%clk 0:02:43]}  Nge7 {[%clk 0:02:52]} 9. c3 {[%clk 0:02:38]}  h5 {[%clk 0:02:50]} 10. Bd3 {[%clk 0:02:19]}  Nf5 {[%clk 0:02:48]} 11. h4 {[%clk 0:01:47]}  Bd7 {[%clk 0:02:44]} 12. g3 {[%clk 0:01:44]}  Nce7 {[%clk 0:02:43]} 13. O-O {[%clk 0:01:39]}  b5 {[%clk 0:02:42]} 14. Qe2 {[%clk 0:01:30]}  a6 {[%clk 0:02:38]} 15. Nbd2 {[%clk 0:01:11]}  Qb6 {[%clk 0:02:33]} 16. Rfa1 {[%clk 0:00:54]}  O-O {[%clk 0:02:25]} 17. Ng5 {[%clk 0:00:52]}  g6 {[%clk 0:02:23]} 18. Qf3 {[%clk 0:00:41]}  Kg7 {[%clk 0:02:17]} 19. Kg2 {[%clk 0:00:40]}  a5 {[%clk 0:02:14]} 20. Kh3 {[%clk 0:00:36]}  Bc6 {[%clk 0:02:13]} 21. g4 {[%clk 0:00:35]}  hxg4+ {[%clk 0:02:12]} 22. Kxg4 {[%clk 0:00:30]}  Rh8 {[%clk 0:02:10]} 23. Rh1 {[%clk 0:00:29]}  b4 {[%clk 0:02:08]} 24. cxb4 {[%clk 0:00:28]}  axb4 {[%clk 0:02:05]} 25. Rxa8 {[%clk 0:00:28]}  Bxa8 {[%clk 0:02:03]} 26. h5 {[%clk 0:00:24]}  Qxd4+ {[%clk 0:02:01]} 0-1


[Site "https://www.chess.com"]

[Event "Titled Tuesday Blitz March 21 Early 2023"]
[White "Larina, Maria"]
[Black "th3d4rkness"]
[WhiteFideId "24113182"]
[WhiteElo "1848"]
[BlackElo "2109"]
[Result "0-1"]
[Round "08"]
[TimeControl "180+2"]
[Date "2023.03.21"]
[WhiteClock "0:00:06"]
[BlackClock "0:00:15"]

1. e4 {[%clk 0:03:00]}  c5 {[%clk 0:02:59]} 2. Nc3 {[%clk 0:03:00]}  Nc6 {[%clk 0:02:59]} 3. g3 {[%clk 0:03:00]}  g6 {[%clk 0:02:59]} 4. Bg2 {[%clk 0:03:01]}  Bg7 {[%clk 0:02:59]} 5. d3 {[%clk 0:03:00]}  d6 {[%clk 0:02:59]} 6. Be3 {[%clk 0:02:59]}  Rb8 {[%clk 0:02:58]} 7. Qd2 {[%clk 0:02:57]}  b5 {[%clk 0:02:56]} 8. Nge2 {[%clk 0:02:50]}  Nd4 {[%clk 0:02:53]} 9. O-O {[%clk 0:02:41]}  Bg4 {[%clk 0:02:50]} 10. f3 {[%clk 0:02:36]}  Bd7 {[%clk 0:02:49]} 11. b4 {[%clk 0:02:07]}  Nxe2+ {[%clk 0:02:45]} 12. Nxe2 {[%clk 0:02:06]}  Bxa1 {[%clk 0:02:41]} 13. Rxa1 {[%clk 0:02:07]}  Rc8 {[%clk 0:02:28]} 14. Qc3 {[%clk 0:01:49]}  Nf6 {[%clk 0:02:25]} 15. bxc5 {[%clk 0:01:43]}  dxc5 {[%clk 0:02:24]} 16. Bxc5 {[%clk 0:01:34]}  O-O {[%clk 0:02:23]} 17. Qb4 {[%clk 0:01:17]}  Re8 {[%clk 0:02:21]} 18. c3 {[%clk 0:01:04]}  a5 {[%clk 0:02:20]} 19. Qd4 {[%clk 0:01:00]}  e5 {[%clk 0:02:08]} 20. Qe3 {[%clk 0:00:58]}  Qc7 {[%clk 0:02:03]} 21. d4 {[%clk 0:00:56]}  exd4 {[%clk 0:02:00]} 22. cxd4 {[%clk 0:00:57]}  Nd5 {[%clk 0:01:52]} 23. Qg5 {[%clk 0:00:55]}  Nb4 {[%clk 0:01:47]} 24. a3 {[%clk 0:00:50]}  Nd3 {[%clk 0:01:45]} 25. Be7 {[%clk 0:00:43]}  Be6 {[%clk 0:01:31]} 26. Bf6 {[%clk 0:00:40]}  Qd6 {[%clk 0:01:25]} 27. e5 {[%clk 0:00:28]}  Qf8 {[%clk 0:01:24]} 28. Qe3 {[%clk 0:00:26]}  Bc4 {[%clk 0:01:21]} 29. f4 {[%clk 0:00:21]}  Nb2 {[%clk 0:01:11]} 30. g4 {[%clk 0:00:19]}  Bxe2 {[%clk 0:01:08]} 31. Qxe2 {[%clk 0:00:19]}  Nc4 {[%clk 0:01:08]} 32. f5 {[%clk 0:00:19]}  Nxa3 {[%clk 0:01:01]} 33. fxg6 {[%clk 0:00:17]}  hxg6 {[%clk 0:00:50]} 34. Qf3 {[%clk 0:00:17]}  Rxe5 {[%clk 0:00:32]} 35. dxe5 {[%clk 0:00:16]}  Qc5+ {[%clk 0:00:28]} 36. Kh1 {[%clk 0:00:15]}  Qc3 {[%clk 0:00:24]} 37. Rf1 {[%clk 0:00:14]}  Qxf3 {[%clk 0:00:23]} 38. Bxf3 {[%clk 0:00:14]}  b4 {[%clk 0:00:22]} 39. Bd5 {[%clk 0:00:13]}  Rc5 {[%clk 0:00:19]} 40. Bb3 {[%clk 0:00:11]}  Rc3 {[%clk 0:00:18]} 41. Ba2 {[%clk 0:00:11]}  Rc2 {[%clk 0:00:18]} 42. Bb3 {[%clk 0:00:10]}  Rc3 {[%clk 0:00:18]} 43. Ba4 {[%clk 0:00:11]}  b3 {[%clk 0:00:17]} 44. Rd1 {[%clk 0:00:09]}  g5 {[%clk 0:00:15]} 45. Rd8+ {[%clk 0:00:09]}  Kh7 {[%clk 0:00:16]} 46. Rh8+ {[%clk 0:00:09]}  Kg6 {[%clk 0:00:16]} 47. Rg8+ {[%clk 0:00:10]}  Kh7 {[%clk 0:00:17]} 48. Rg7+ {[%clk 0:00:10]}  Kh6 {[%clk 0:00:17]} 49. Rg8 {[%clk 0:00:08]}  b2 {[%clk 0:00:16]} 50. Bxg5+ {[%clk 0:00:07]}  Kh7 {[%clk 0:00:16]} 51. Rb8 {[%clk 0:00:07]}  b1=Q+ {[%clk 0:00:16]} 52. Rxb1 {[%clk 0:00:07]}  Nxb1 {[%clk 0:00:16]} 53. Be8 {[%clk 0:00:06]}  Kg6 {[%clk 0:00:16]} 54. Bc1 {[%clk 0:00:05]}  Rxc1+ {[%clk 0:00:15]} 55. Kg2 {[%clk 0:00:06]}  Re1 {[%clk 0:00:15]} 56. Kf2 {[%clk 0:00:06]}  Rxe5 {[%clk 0:00:15]} 0-1


[Site "https://www.chess.com"]

[Event "Titled Tuesday Blitz March 21 Early 2023"]
[White "Winkels, Marcel"]
[Black "MANOJ_MISHRA123"]
[WhiteFideId "1003887"]
[WhiteElo "1900"]
[BlackElo "2103"]
[Result "1-0"]
[Round "08"]
[TimeControl "180+2"]
[Date "2023.03.21"]
[WhiteClock "0:01:40"]
[BlackClock "0:00:23"]

1. e4 {[%clk 0:03:00]}  Nf6 {[%clk 0:02:58]} 2. e5 {[%clk 0:02:59]}  Nd5 {[%clk 0:02:57]} 3. d4 {[%clk 0:03:00]}  d6 {[%clk 0:02:57]} 4. Nf3 {[%clk 0:03:01]}  dxe5 {[%clk 0:02:55]} 5. Nxe5 {[%clk 0:03:00]}  c6 {[%clk 0:02:56]} 6. Be2 {[%clk 0:02:59]}  Nd7 {[%clk 0:02:54]} 7. Nf3 {[%clk 0:02:58]}  N7f6 {[%clk 0:02:52]} 8. O-O {[%clk 0:02:59]}  g6 {[%clk 0:02:52]} 9. c4 {[%clk 0:02:57]}  Nc7 {[%clk 0:02:50]} 10. Nc3 {[%clk 0:02:57]}  Bg7 {[%clk 0:02:48]} 11. Be3 {[%clk 0:02:57]}  O-O {[%clk 0:02:48]} 12. h3 {[%clk 0:02:57]}  h6 {[%clk 0:02:30]} 13. Qd2 {[%clk 0:02:55]}  Kh7 {[%clk 0:02:28]} 14. Ne5 {[%clk 0:02:49]}  Bf5 {[%clk 0:02:22]} 15. f4 {[%clk 0:02:47]}  Ne6 {[%clk 0:02:16]} 16. Rad1 {[%clk 0:02:43]}  Ne4 {[%clk 0:02:11]} 17. Nxe4 {[%clk 0:02:42]}  Bxe4 {[%clk 0:02:12]} 18. Bd3 {[%clk 0:02:36]}  Bxd3 {[%clk 0:02:03]} 19. Qxd3 {[%clk 0:02:36]}  Bxe5 {[%clk 0:01:51]} 20. fxe5 {[%clk 0:02:33]}  f5 {[%clk 0:01:21]} 21. exf6 {[%clk 0:02:28]}  exf6 {[%clk 0:01:08]} 22. d5 {[%clk 0:02:27]}  cxd5 {[%clk 0:00:58]} 23. cxd5 {[%clk 0:02:26]}  Ng5 {[%clk 0:00:54]} 24. Bxg5 {[%clk 0:02:18]}  hxg5 {[%clk 0:00:52]} 25. d6 {[%clk 0:02:17]}  Qb6+ {[%clk 0:00:49]} 26. Kh1 {[%clk 0:02:17]}  Rad8 {[%clk 0:00:47]} 27. Rfe1 {[%clk 0:02:13]}  Rf7 {[%clk 0:00:45]} 28. b3 {[%clk 0:01:59]}  Rfd7 {[%clk 0:00:37]} 29. Re6 {[%clk 0:01:58]}  Kg7 {[%clk 0:00:35]} 30. Qe4 {[%clk 0:01:49]}  Rxd6 {[%clk 0:00:28]} 31. Rexd6 {[%clk 0:01:42]}  Rxd6 {[%clk 0:00:24]} 32. Qe7+ {[%clk 0:01:40]}  Kh6 {[%clk 0:00:23]} 33. Qxd6 {[%clk 0:01:40]} 1-0


[Site "https://www.chess.com"]

[Event "Titled Tuesday Blitz March 21 Early 2023"]
[White "Lazavik, Denis"]
[Black "Wei, Yi"]
[WhiteFideId "13515110"]
[BlackFideId "8603405"]
[WhiteElo "2560"]
[BlackElo "2686"]
[Result "1/2-1/2"]
[Round "09"]
[TimeControl "180+2"]
[Date "2023.03.21"]
[WhiteClock "0:00:18"]
[BlackClock "0:00:09"]

1. d4 {[%clk 0:02:59]}  d5 {[%clk 0:03:00]} 2. c4 {[%clk 0:03:00]}  e6 {[%clk 0:03:00]} 3. Nf3 {[%clk 0:03:00]}  Nf6 {[%clk 0:02:57]} 4. g3 {[%clk 0:03:01]}  Be7 {[%clk 0:02:56]} 5. Bg2 {[%clk 0:03:01]}  O-O {[%clk 0:02:57]} 6. O-O {[%clk 0:03:02]}  dxc4 {[%clk 0:02:57]} 7. Qc2 {[%clk 0:03:02]}  a6 {[%clk 0:02:57]} 8. a4 {[%clk 0:03:03]}  Bd7 {[%clk 0:02:57]} 9. Qxc4 {[%clk 0:03:03]}  Bc6 {[%clk 0:02:57]} 10. Bg5 {[%clk 0:03:04]}  Nbd7 {[%clk 0:02:50]} 11. Rd1 {[%clk 0:03:04]}  a5 {[%clk 0:02:48]} 12. Nbd2 {[%clk 0:03:04]}  h6 {[%clk 0:02:39]} 13. Bxf6 {[%clk 0:03:04]}  Nxf6 {[%clk 0:02:39]} 14. Qd3 {[%clk 0:03:04]}  Bb4 {[%clk 0:02:14]} 15. e4 {[%clk 0:03:04]}  Qe7 {[%clk 0:02:00]} 16. Ne5 {[%clk 0:03:03]}  Rfd8 {[%clk 0:02:00]} 17. Nxc6 {[%clk 0:02:48]}  bxc6 {[%clk 0:02:00]} 18. Nc4 {[%clk 0:02:44]}  Rab8 {[%clk 0:01:46]} 19. Rac1 {[%clk 0:02:34]}  Nd7 {[%clk 0:01:32]} 20. Qc2 {[%clk 0:02:27]}  c5 {[%clk 0:01:20]} 21. d5 {[%clk 0:02:25]}  exd5 {[%clk 0:01:16]} 22. exd5 {[%clk 0:02:25]}  Nb6 {[%clk 0:01:12]} 23. Rd3 {[%clk 0:01:56]}  Nxc4 {[%clk 0:01:05]} 24. Qxc4 {[%clk 0:01:56]}  Qe2 {[%clk 0:01:03]} 25. Qc2 {[%clk 0:01:45]}  Re8 {[%clk 0:00:55]} 26. Bf3 {[%clk 0:01:38]}  Qe5 {[%clk 0:00:51]} 27. b3 {[%clk 0:01:04]}  Qf6 {[%clk 0:00:51]} 28. Kg2 {[%clk 0:01:03]}  Re5 {[%clk 0:00:50]} 29. Rcd1 {[%clk 0:01:02]}  Rd8 {[%clk 0:00:49]} 30. h4 {[%clk 0:01:02]}  h5 {[%clk 0:00:49]} 31. Qc1 {[%clk 0:00:49]}  g6 {[%clk 0:00:46]} 32. Qb2 {[%clk 0:00:42]}  Kg7 {[%clk 0:00:43]} 33. Rc1 {[%clk 0:00:35]}  Rd6 {[%clk 0:00:34]} 34. Rc4 {[%clk 0:00:34]}  Re1 {[%clk 0:00:30]} 35. Qxf6+ {[%clk 0:00:33]}  Rxf6 {[%clk 0:00:30]} 36. Rd1 {[%clk 0:00:25]}  Rxd1 {[%clk 0:00:19]} 37. Bxd1 {[%clk 0:00:26]}  Rf5 {[%clk 0:00:19]} 38. Bf3 {[%clk 0:00:24]}  Re5 {[%clk 0:00:20]} 39. Rc1 {[%clk 0:00:23]}  Kf6 {[%clk 0:00:19]} 40. Rd1 {[%clk 0:00:22]}  Ke7 {[%clk 0:00:20]} 41. Rc1 {[%clk 0:00:21]}  Kd6 {[%clk 0:00:20]} 42. Kf1 {[%clk 0:00:22]}  f5 {[%clk 0:00:18]} 43. Bg2 {[%clk 0:00:21]}  Re7 {[%clk 0:00:18]} 44. Bf3 {[%clk 0:00:21]}  Re5 {[%clk 0:00:17]} 45. Bg2 {[%clk 0:00:20]}  Bd2 {[%clk 0:00:17]} 46. Rd1 {[%clk 0:00:20]}  Bc3 {[%clk 0:00:17]} 47. Bf3 {[%clk 0:00:20]}  Bd4 {[%clk 0:00:18]} 48. Re1 {[%clk 0:00:20]}  Rxe1+ {[%clk 0:00:10]} 49. Kxe1 {[%clk 0:00:21]}  Be5 {[%clk 0:00:08]} 50. Be2 {[%clk 0:00:18]}  Bd4 {[%clk 0:00:08]} 51. Bc4 {[%clk 0:00:18]}  Ke7 {[%clk 0:00:08]} 52. Ke2 {[%clk 0:00:18]}  Kd6 {[%clk 0:00:08]} 53. Kf3 {[%clk 0:00:16]}  Ke7 {[%clk 0:00:08]} 54. Ke2 {[%clk 0:00:17]}  Kd6 {[%clk 0:00:08]} 55. Kf3 {[%clk 0:00:18]}  Ke7 {[%clk 0:00:09]} 56. Ke2 {[%clk 0:00:18]} 1/2-1/2


[Site "https://www.chess.com"]

[Event "Titled Tuesday Blitz March 21 Early 2023"]
[White "Dubov, Daniil"]
[Black "Paravyan, David"]
[WhiteFideId "24126055"]
[BlackFideId "4194985"]
[WhiteElo "2802"]
[BlackElo "2577"]
[Result "1/2-1/2"]
[Round "09"]
[TimeControl "180+2"]
[Date "2023.03.21"]
[WhiteClock "0:00:03"]
[BlackClock "0:00:04"]

1. e4 {[%clk 0:03:00]}  e5 {[%clk 0:02:54]} 2. Nf3 {[%clk 0:02:59]}  Nf6 {[%clk 0:02:55]} 3. Nc3 {[%clk 0:02:58]}  Nc6 {[%clk 0:02:55]} 4. d4 {[%clk 0:02:59]}  exd4 {[%clk 0:02:56]} 5. Nxd4 {[%clk 0:03:00]}  Bb4 {[%clk 0:02:56]} 6. Nxc6 {[%clk 0:03:00]}  bxc6 {[%clk 0:02:56]} 7. Bd3 {[%clk 0:03:01]}  O-O {[%clk 0:02:56]} 8. O-O {[%clk 0:03:01]}  d5 {[%clk 0:02:57]} 9. exd5 {[%clk 0:03:01]}  cxd5 {[%clk 0:02:55]} 10. Qf3 {[%clk 0:03:01]}  Bg4 {[%clk 0:02:55]} 11. Qg3 {[%clk 0:03:01]}  c5 {[%clk 0:02:53]} 12. Bg5 {[%clk 0:02:58]}  Bxc3 {[%clk 0:02:51]} 13. bxc3 {[%clk 0:02:57]}  c4 {[%clk 0:02:51]} 14. Bxh7+ {[%clk 0:02:47]}  Kxh7 {[%clk 0:02:52]} 15. Bxf6 {[%clk 0:02:47]}  Qxf6 {[%clk 0:02:53]} 16. Qxg4 {[%clk 0:02:48]}  Qxc3 {[%clk 0:02:53]} 17. Rad1 {[%clk 0:02:27]}  Rad8 {[%clk 0:02:42]} 18. Rd4 {[%clk 0:02:20]}  Kg8 {[%clk 0:02:22]} 19. Qd1 {[%clk 0:01:55]}  Rfe8 {[%clk 0:02:14]} 20. h4 {[%clk 0:01:47]}  Re5 {[%clk 0:02:05]} 21. Qd2 {[%clk 0:01:42]}  Qxd2 {[%clk 0:01:58]} 22. Rxd2 {[%clk 0:01:43]}  Rb8 {[%clk 0:01:58]} 23. Rfd1 {[%clk 0:01:36]}  Rb2 {[%clk 0:01:56]} 24. c3 {[%clk 0:01:19]}  Re1+ {[%clk 0:01:55]} 25. Kh2 {[%clk 0:00:57]}  Rxd1 {[%clk 0:01:52]} 26. Rxd1 {[%clk 0:00:57]}  Rxf2 {[%clk 0:01:45]} 27. Rxd5 {[%clk 0:00:56]}  Rxa2 {[%clk 0:01:45]} 28. Rc5 {[%clk 0:00:54]}  Ra4 {[%clk 0:01:38]} 29. g4 {[%clk 0:00:53]}  g6 {[%clk 0:01:38]} 30. Kg3 {[%clk 0:00:50]}  Kg7 {[%clk 0:01:38]} 31. g5 {[%clk 0:00:46]}  a5 {[%clk 0:01:38]} 32. Rc7 {[%clk 0:00:43]}  Kf8 {[%clk 0:01:35]} 33. Kf4 {[%clk 0:00:42]}  Ra1 {[%clk 0:01:34]} 34. Rxc4 {[%clk 0:00:33]}  a4 {[%clk 0:01:34]} 35. Kg3 {[%clk 0:00:20]}  a3 {[%clk 0:01:35]} 36. Ra4 {[%clk 0:00:15]}  Ke7 {[%clk 0:01:32]} 37. c4 {[%clk 0:00:09]}  Kd6 {[%clk 0:01:31]} 38. Ra5 {[%clk 0:00:09]}  Kc6 {[%clk 0:01:28]} 39. c5 {[%clk 0:00:05]}  Kd5 {[%clk 0:01:27]} 40. Kg2 {[%clk 0:00:05]}  a2 {[%clk 0:00:55]} 41. Kh2 {[%clk 0:00:04]}  Kc4 {[%clk 0:00:52]} 42. c6 {[%clk 0:00:05]}  Kb3 {[%clk 0:00:52]} 43. c7 {[%clk 0:00:01]}  Rc1 {[%clk 0:00:52]} 44. Rb5+ {[%clk 0:00:02]}  Ka3 {[%clk 0:00:41]} 45. Ra5+ {[%clk 0:00:02]}  Kb3 {[%clk 0:00:34]} 46. Rb5+ {[%clk 0:00:02]}  Ka4 {[%clk 0:00:20]} 47. Rb7 {[%clk 0:00:02]}  Rc3 {[%clk 0:00:21]} 48. Ra7+ {[%clk 0:00:01]}  Kb3 {[%clk 0:00:21]} 49. Rb7+ {[%clk 0:00:01]}  Kc2 {[%clk 0:00:21]} 50. Ra7 {[%clk 0:00:02]}  Kb2 {[%clk 0:00:18]} 51. Rb7+ {[%clk 0:00:02]}  Kc1 {[%clk 0:00:17]} 52. Ra7 {[%clk 0:00:02]}  Rc2+ {[%clk 0:00:07]} 53. Kg3 {[%clk 0:00:02]}  Kb1 {[%clk 0:00:07]} 54. Rb7+ {[%clk 0:00:02]}  Kc1 {[%clk 0:00:07]} 55. Ra7 {[%clk 0:00:03]}  Kb2 {[%clk 0:00:04]} 56. Rb7+ {[%clk 0:00:03]}  Ka3 {[%clk 0:00:04]} 57. Ra7+ {[%clk 0:00:03]}  Kb2 {[%clk 0:00:04]} 58. Rb7+ {[%clk 0:00:04]}  Kc1 {[%clk 0:00:04]} 59. Ra7 {[%clk 0:00:03]} 1/2-1/2


[Site "https://www.chess.com"]